fUSD/lending_fUSD_20250625
["ID","MTS","AMOUNT","RATE_DAILY","PERIOD"]
[367478772,1750812638761,-490.0,0.00024106,2]
[367478773,1750812638772,-490.0,0.00024106,2]
[367478774,1750812638782,-484.39754325,0.00024106,2]
[367478775,1750812638796,-5.60245675,0.00024106,2]
[367478776,1750812638807,-490.0,0.00024106,2]
[367478777,1750812638818,-490.0,0.00024106,2]
[367478778,1750812638829,-20.9226664,0.00024106,2]
[367478779,1750812638877,-350.27348636,0.00024106,2]
[367478780,1750812638890,-118.80384724,0.00024106,2]
[367478781,1750812638900,-490.0,0.00024106,2]
[367478782,1750812638910,-490.0,0.00024106,2]
[367478783,1750812638920,-257.74615276,0.00024106,2]
[367478784,1750812638932,-232.25384724,0.00024106,2]
[367478785,1750812638941,-490.0,0.00024106,2]
[367478786,1750812638950,-251.8421709,0.00024106,2]
[367478787,1750812638960,-28.13585927,0.00024106,2]
[367478790,1750812639498,-461.86414073,0.00024106,2]
[367478791,1750812639509,-490.0,0.00024106,2]
[367478792,1750812639519,-490.0,0.00024106,2]
[367478793,1750812639530,-490.0,0.00024106,2]
[367478794,1750812639541,-490.0,0.00024106,2]
[367478795,1750812639551,-490.0,0.00024106,2]
[367478796,1750812639562,-490.0,0.00024106,2]
[367478797,1750812639573,-490.0,0.00024106,2]
[367478798,1750812639584,-490.0,0.00024106,2]
[367478799,1750812639594,-635.38,0.00024106,2]
[367478800,1750812639605,-490.0,0.00024106,2]
[367478801,1750812639615,-490.0,0.00024106,2]
[367478802,1750812639626,-490.0,0.00024106,2]
[367478803,1750812639636,-490.0,0.00024106,2]
[367478804,1750812639647,-490.0,0.00024106,2]
[367478805,1750812639658,-490.0,0.00024106,2]
[367478806,1750812639669,-490.0,0.00024106,2]
[367478807,1750812639680,-490.0,0.00024106,2]
[367478808,1750812639691,-638.25,0.00024106,2]
[367478809,1750812639702,-490.0,0.00024106,2]
[367478810,1750812639713,-490.0,0.00024106,2]
[367478811,1750812639723,-490.0,0.00024106,2]
[367478812,1750812639733,-490.0,0.00024106,2]
[367478813,1750812639744,-490.0,0.00024106,2]
[367478814,1750812639755,-490.0,0.00024106,2]
[367478815,1750812639765,-490.0,0.00024106,2]
[367478816,1750812639776,-490.0,0.00024106,2]
[367478817,1750812639787,-523.0,0.00024106,2]
[367478818,1750812639799,-790.63,0.00024106,2]
[367478819,1750812639810,-259.59901306,0.00024106,2]
[367478820,1750812639820,-490.0,0.00024106,2]
[367478821,1750812639831,-490.0,0.00024106,2]
[367478822,1750812639841,-490.0,0.00024106,2]
[367478823,1750812639855,-490.0,0.00024106,2]
[367478824,1750812639865,-490.0,0.00024106,2]
[367478825,1750812639876,-490.0,0.00024106,2]
[367478826,1750812639888,-490.0,0.00024106,2]
[367478827,1750812639898,-490.0,0.00024106,2]
[367478828,1750812639907,-490.0,0.00024106,2]
[367478829,1750812639919,-490.0,0.00024106,2]
[367478830,1750812639929,-490.0,0.00024106,2]
[367478831,1750812639940,-490.0,0.00024106,2]
[367478832,1750812639952,-490.0,0.00024106,2]
[367478833,1750812639962,-490.0,0.00024106,2]
[367478834,1750812639972,-490.0,0.00024106,2]
[367478835,1750812639982,-490.0,0.00024106,2]
[367478837,1750812639993,-490.0,0.00024106,2]
[367478839,1750812640003,-490.0,0.00024106,2]
[367478840,1750812640014,-490.0,0.00024106,2]
[367478841,1750812640025,-307.44,0.00024106,2]
[367478842,1750812640035,-490.0,0.00024106,2]
[367478843,1750812640045,-490.0,0.00024106,2]
[367478844,1750812640057,-490.0,0.00024106,2]
[367478845,1750812640070,-490.0,0.00024106,2]
[367478846,1750812640082,-490.0,0.00024106,2]
[367478847,1750812640093,-490.0,0.00024106,2]
[367478848,1750812640104,-151.0,0.00024106,7]
[367478849,1750812640115,-504.1,0.00024106,2]
[367478850,1750812640125,-151.0,0.00024106,7]
[367478851,1750812640136,-151.0,0.00024106,7]
[367478852,1750812640146,-151.0,0.00024106,7]
[367478853,1750812640157,-490.0,0.00024106,2]
[367478854,1750812640167,-490.0,0.00024106,2]
[367478855,1750812640178,-490.0,0.00024106,2]
[367478856,1750812640189,-490.0,0.00024106,2]
[367478857,1750812640199,-490.0,0.00024106,2]
[367478858,1750812640209,-490.0,0.00024106,2]
[367478859,1750812640218,-490.0,0.00024106,2]
[367478860,1750812640229,-490.0,0.00024106,2]
[367478861,1750812640242,-490.0,0.00024106,2]
[367478862,1750812640252,-490.0,0.00024106,2]
[367478863,1750812640262,-293.41,0.00024106,2]
[367478864,1750812640273,-490.0,0.00024106,2]
[367478865,1750812640283,-490.0,0.00024106,2]
[367478866,1750812640294,-490.0,0.00024106,2]
[367478867,1750812640304,-490.0,0.00024106,2]
[367478868,1750812640315,-490.0,0.00024106,2]
[367478869,1750812640326,-490.0,0.00024106,2]
[367478870,1750812640338,-490.0,0.00024106,2]
[367478871,1750812640349,-490.0,0.00024106,2]
[367478872,1750812640361,-490.0,0.00024106,2]
[367478873,1750812640372,-490.0,0.00024106,2]
[367478874,1750812640382,-208.65940597,0.00024106,2]
[367478875,1750812640392,-490.0,0.00024106,2]
[367478876,1750812640402,-490.0,0.00024106,2]
[367478877,1750812640412,-490.0,0.00024106,2]
[367478878,1750812640422,-490.0,0.00024106,2]
[367478879,1750812640432,-490.0,0.00024106,2]
[367478880,1750812640443,-490.0,0.00024106,2]
[367478881,1750812640453,-527.76,0.00024106,2]
[367478882,1750812640463,-153.1,0.00024106,2]
[367478883,1750812640475,-490.0,0.00024106,2]
[367478884,1750812640485,-50.20505043,0.00024106,2]
[367478885,1750812640639,-449.79494957,0.00024106,2]
[367478886,1750812640649,-500.0,0.00024106,2]
[367478887,1750812640661,-490.0,0.00024106,2]
[367478888,1750812640670,-490.0,0.00024106,2]
[367478889,1750812640681,-490.0,0.00024106,2]
[367478890,1750812640694,-490.0,0.00024106,2]
[367478891,1750812640704,-490.0,0.00024106,2]
[367478892,1750812640715,-490.0,0.00024106,2]
[367478893,1750812640724,-490.0,0.00024106,2]
[367478894,1750812640734,-291.19369643,0.00024106,2]
[367478895,1750812640744,-612.27766752,0.00024106,2]
[367478896,1750812640755,-490.0,0.00024106,2]
[367478897,1750812640765,-490.0,0.00024106,2]
[367478898,1750812640775,-490.0,0.00024106,2]
[367478899,1750812640784,-490.0,0.00024106,2]
[367478900,1750812640794,-490.0,0.00024106,2]
[367478901,1750812640804,-587.09,0.00024106,2]
[367478902,1750812640814,-490.0,0.00024106,2]
[367478903,1750812640824,-490.0,0.00024106,2]
[367478904,1750812640835,-555.22,0.00024106,2]
[367478905,1750812640846,-574.93,0.00024106,2]
[367478906,1750812640856,-495.25,0.00024106,2]
[367478907,1750812640866,-490.0,0.00024106,2]
[367478908,1750812640876,-490.0,0.00024106,2]
[367478909,1750812640887,-490.0,0.00024106,2]
[367478910,1750812640897,-490.0,0.00024106,2]
[367478911,1750812640907,-1000.0,0.00024106,2]
[367478912,1750812640917,-490.0,0.00024106,2]
[367478913,1750812640927,-490.0,0.00024106,2]
[367478914,1750812640936,-490.0,0.00024106,2]
[367478915,1750812640946,-490.0,0.00024106,2]
[367478916,1750812640956,-490.0,0.00024106,2]
[367478917,1750812640966,-207.6,0.00024106,2]
[367478918,1750812640976,-490.0,0.00024107,2]
[367478919,1750812640986,-254.16,0.00024107,2]
[367478920,1750812640996,-490.0,0.00024107,2]
[367478921,1750812641006,-490.0,0.00024107,2]
[367478922,1750812641016,-151.0,0.00024107,2]
[367478923,1750812641025,-151.0,0.00024107,2]
[367478924,1750812641035,-490.0,0.00024107,2]
[367478925,1750812641045,-490.0,0.00024107,2]
[367478926,1750812641055,-490.0,0.00024107,2]
[367478927,1750812641065,-490.0,0.00024107,2]
[367478928,1750812641075,-490.0,0.00024107,2]
[367478929,1750812641085,-490.0,0.00024107,2]
[367478930,1750812641095,-490.0,0.00024107,2]
[367478931,1750812641105,-494.14,0.00024107,2]
[367478932,1750812641115,-192.93,0.00024107,2]
[367478933,1750812641125,-442.02453972,0.00024107,2]
[367478934,1750812641134,-151.0,0.00024107,7]
[367478935,1750812641144,-490.0,0.00024107,2]
[367478936,1750812641154,-490.0,0.00024107,2]
[367478937,1750812641163,-490.0,0.00024107,2]
[367478938,1750812641173,-490.0,0.00024107,2]
[367478939,1750812641183,-151.0,0.00024107,7]
[367478940,1750812641193,-151.0,0.00024107,7]
[367478941,1750812641203,-151.0,0.00024107,7]
[367478942,1750812641213,-151.0,0.00024107,7]
[367478943,1750812641222,-151.0,0.00024107,7]
[367478944,1750812641232,-500.0,0.00024107,2]
[367478945,1750812641246,-490.0,0.00024107,2]
[367478946,1750812641256,-209.723682,0.00024107,7]
[367478947,1750812641268,-151.93,0.00024107,2]
[367478948,1750812641278,-188.0,0.00024108,2]
[367478949,1750812641288,-12500.0,0.00024109,3]
[367478950,1750812641299,-12500.0,0.00024109,3]
[367478951,1750812641309,-266.046795,0.00024109,7]
[367478952,1750812641319,-151.0,0.00024116,2]
[367478953,1750812641329,-838.5361619,0.00024123,2]
[367478954,1750812641340,-380.35655909,0.00024173,2]
[367478955,1750812641349,-500.0,0.00024173,2]
[367478956,1750812641359,-212.44081665,0.00024173,2]
[367478957,1750812641370,-359.12499857,0.00024173,2]
[367478958,1750812641380,-500.0,0.00024173,2]
[367478959,1750812641390,-500.0,0.00024173,2]
[367478960,1750812641400,-500.0,0.00024173,2]
[367478961,1750812641411,-500.0,0.00024173,2]
[367478962,1750812641425,-500.0,0.00024173,2]
[367478963,1750812641436,-251.46,0.00024324,2]
[367478964,1750812641447,-230.78,0.00024324,2]
[367478965,1750812641457,-500.0,0.00024324,2]
[367478966,1750812641467,-490.0,0.00024379,2]
[367478967,1750812641479,-490.0,0.00024379,2]
[367478968,1750812641489,-490.0,0.00024379,2]
[367478969,1750812641500,-490.0,0.00024379,2]
[367478970,1750812641511,-490.0,0.00024379,2]
[367478971,1750812641522,-490.0,0.0002438,2]
[367478972,1750812641532,-490.0,0.0002438,2]
[367478973,1750812641542,-490.0,0.0002438,2]
[367478974,1750812641558,-490.0,0.0002438,2]
[367478975,1750812641568,-211.32,0.0002438,2]
[367478976,1750812641579,-490.0,0.0002438,2]
[367478977,1750812641589,-490.0,0.0002438,2]
[367478978,1750812641599,-490.0,0.0002438,2]
[367478979,1750812641609,-490.0,0.0002438,2]
[367478980,1750812641619,-490.0,0.0002438,2]
[367478981,1750812641629,-310.85968202,0.0002438,2]
[367478982,1750812641639,-490.0,0.0002438,2]
[367478983,1750812641649,-490.0,0.0002438,2]
[367478984,1750812641659,-490.0,0.0002438,2]
[367478985,1750812641669,-490.0,0.0002438,2]
[367478986,1750812641678,-490.0,0.0002438,2]
[367478987,1750812641689,-490.0,0.0002438,2]
[367478988,1750812641699,-490.0,0.0002438,2]
[367478989,1750812641708,-425.20890162,0.0002438,2]
[367478990,1750812641719,-490.0,0.0002438,2]
[367478991,1750812641729,-523.1,0.0002438,2]
[367478992,1750812641738,-490.0,0.0002438,2]
[367478993,1750812641748,-490.0,0.0002438,2]
[367478994,1750812641759,-1692.87,0.0002438,2]
[367478995,1750812641770,-490.0,0.0002438,2]
[367478996,1750812641780,-490.0,0.0002438,2]
[367478997,1750812641790,-245.92,0.0002438,2]
[367478998,1750812641799,-490.0,0.0002438,2]
[367478999,1750812641810,-428.41511254,0.0002438,2]
[367479000,1750812641820,-490.0,0.0002438,2]
[367479001,1750812641830,-490.0,0.0002438,2]
[367479002,1750812641840,-490.0,0.0002438,2]
[367479003,1750812641852,-490.0,0.0002438,2]
[367479004,1750812641863,-490.0,0.0002438,2]
[367479005,1750812641873,-585.29,0.0002438,2]
[367479006,1750812641883,-179.67,0.0002438,2]
[367479007,1750812641895,-513.0,0.0002438,2]
[367479008,1750812641907,-490.0,0.0002438,2]
[367479009,1750812641919,-453.22,0.0002438,2]
[367479010,1750812641931,-490.0,0.0002438,2]
[367479011,1750812642248,-333.16,0.0002438,2]
[367479012,1750812642270,-490.0,0.0002438,2]
[367479013,1750812642287,-404.93,0.0002438,2]
[367479015,1750812642300,-490.0,0.0002438,2]
[367479016,1750812642309,-490.0,0.0002438,2]
[367479017,1750812642319,-431.71,0.0002438,2]
[367479018,1750812642328,-490.0,0.0002438,2]
[367479019,1750812642338,-632.82,0.0002438,2]
[367479020,1750812642347,-490.0,0.0002438,2]
[367479021,1750812642357,-435.68171857,0.0002438,2]
[367479022,1750812642366,-490.0,0.0002438,2]
[367479023,1750812642375,-490.0,0.0002438,2]
[367479024,1750812642385,-490.0,0.0002438,2]
[367479025,1750812642395,-490.0,0.0002438,2]
[367479026,1750812642405,-490.0,0.0002438,2]
[367479027,1750812642416,-490.0,0.0002438,2]
[367479028,1750812642425,-192.26,0.0002438,2]
[367479029,1750812642436,-452.69739736,0.0002438,2]
[367479030,1750812642448,-490.0,0.0002438,2]
[367479031,1750812642458,-190.4,0.0002438,2]
[367479032,1750812642468,-490.0,0.0002438,2]
[367479033,1750812642478,-490.0,0.0002438,2]
[367479034,1750812642488,-255.94,0.0002438,2]
[367479035,1750812642497,-490.0,0.0002438,2]
[367479036,1750812642507,-490.0,0.0002438,2]
[367479037,1750812642516,-490.0,0.0002438,2]
[367479038,1750812642525,-490.0,0.0002438,2]
[367479039,1750812642535,-199.38,0.0002438,2]
[367479040,1750812642545,-490.0,0.0002438,2]
[367479041,1750812642555,-490.0,0.0002438,2]
[367479042,1750812642564,-490.0,0.0002438,2]
[367479043,1750812642574,-490.0,0.0002438,2]
[367479044,1750812642583,-490.0,0.0002438,2]
[367479045,1750812642592,-790.63,0.0002438,2]
[367479046,1750812642602,-490.0,0.0002438,2]
[367479047,1750812642611,-490.0,0.0002438,2]
[367479048,1750812642621,-490.0,0.0002438,2]
[367479049,1750812642631,-490.0,0.0002438,2]
[367479050,1750812642640,-490.0,0.0002438,2]
[367479051,1750812642649,-490.0,0.0002438,2]
[367479052,1750812642659,-341.84,0.0002438,2]
[367479053,1750812642669,-490.0,0.0002438,2]
[367479054,1750812642678,-490.0,0.0002438,2]
[367479055,1750812642688,-490.0,0.0002438,2]
[367479056,1750812642698,-490.0,0.0002438,2]
[367479057,1750812642708,-490.0,0.0002438,2]
[367479058,1750812642718,-490.0,0.0002438,2]
[367479059,1750812642728,-490.0,0.0002438,2]
[367479060,1750812642738,-490.0,0.0002438,2]
[367479061,1750812642747,-490.0,0.0002438,2]
[367479062,1750812642757,-490.0,0.0002438,2]
[367479063,1750812642767,-490.0,0.0002438,2]
[367479065,1750812642777,-490.0,0.0002438,2]
[367479067,1750812642786,-179.75,0.0002438,2]
[367479069,1750812642795,-490.0,0.0002438,2]
[367479071,1750812642804,-490.0,0.0002438,2]
[367479073,1750812642813,-490.0,0.0002438,2]
[367479074,1750812642828,-490.0,0.0002438,2]
[367479075,1750812642839,-439.76,0.0002438,2]
[367479076,1750812642852,-490.0,0.0002438,2]
[367479077,1750812642862,-490.0,0.0002438,2]
[367479078,1750812642871,-527.76,0.0002438,2]
[367479080,1750812642880,-490.0,0.0002438,2]
[367479082,1750812642890,-490.0,0.0002438,2]
[367479084,1750812642899,-156.1,0.0002438,2]
[367479086,1750812642908,-490.0,0.0002438,2]
[367479088,1750812642917,-490.0,0.0002438,2]
[367479090,1750812642926,-490.0,0.0002438,2]
[367479091,1750812642935,-603.75,0.0002438,2]
[367479093,1750812642945,-490.0,0.0002438,2]
[367479095,1750812642954,-490.0,0.00024381,2]
[367479096,1750812642963,-198.86,0.00024381,2]
[367479097,1750812642972,-306.04,0.00024407,2]
[367479098,1750812642982,-838.5361619,0.00024448,2]
[367479099,1750812642992,-490.0,0.00024653,2]
[367479100,1750812643001,-490.0,0.00024653,2]
[367479101,1750812643011,-490.0,0.00024653,2]
[367479102,1750812643020,-490.0,0.00024653,2]
[367479103,1750812643030,-490.0,0.00024653,2]
[367479104,1750812643039,-490.0,0.00024654,2]
[367479105,1750812643049,-490.0,0.00024654,2]
[367479106,1750812643058,-618.33582767,0.00024654,2]
[367479107,1750812643067,-490.0,0.00024654,2]
[367479108,1750812643076,-490.0,0.00024654,2]
[367479109,1750812643086,-490.0,0.00024654,2]
[367479110,1750812643095,-628.63,0.00024654,2]
[367479111,1750812643105,-490.0,0.00024654,2]
[367479112,1750812643114,-1692.87,0.00024654,2]
[367479113,1750812643124,-230.76,0.00024654,2]
[367479114,1750812643134,-490.0,0.00024654,2]
[367479115,1750812643144,-490.0,0.00024654,2]
[367479116,1750812643153,-490.0,0.00024654,2]
[367479117,1750812643162,-490.0,0.00024654,2]
[367479118,1750812643172,-490.0,0.00024654,2]
[367479119,1750812643181,-490.0,0.00024654,2]
[367479120,1750812643190,-490.0,0.00024654,2]
[367479121,1750812643200,-454.57,0.00024654,2]
[367479122,1750812643209,-490.0,0.00024654,2]
[367479123,1750812643219,-490.0,0.00024654,2]
[367479124,1750812643228,-548.17,0.00024654,2]
[367479125,1750812643237,-490.0,0.00024654,2]
[367479126,1750812643247,-490.0,0.00024654,2]
[367479127,1750812643256,-490.0,0.00024654,2]
[367479128,1750812643265,-490.0,0.00024654,2]
[367479129,1750812643275,-196.97963857,0.00024654,2]
[367479130,1750812643292,-490.0,0.00024654,2]
[367479131,1750812643304,-268.52,0.00024654,2]
[367479132,1750812643314,-490.0,0.00024654,2]
[367479133,1750812643324,-490.0,0.00024654,2]
[367479134,1750812643334,-221.11,0.00024654,2]
[367479135,1750812643344,-490.0,0.00024654,2]
[367479136,1750812643353,-790.63,0.00024654,2]
[367479137,1750812643363,-490.0,0.00024654,2]
[367479138,1750812643373,-238.51,0.00024654,2]
[367479139,1750812643383,-242.6,0.00024654,2]
[367479140,1750812643393,-458.65,0.00024654,2]
[367479141,1750812643403,-490.0,0.00024654,2]
[367479142,1750812643412,-490.0,0.00024654,2]
[367479143,1750812643422,-490.0,0.00024654,2]
[367479144,1750812643432,-490.0,0.00024654,2]
[367479145,1750812643441,-490.0,0.00024654,2]
[367479146,1750812643451,-421.96,0.00024654,2]
[367479147,1750812643460,-218.3,0.00024654,2]
[367479148,1750812643470,-594.99,0.00024654,2]
[367479149,1750812643480,-490.0,0.00024654,2]
[367479150,1750812643490,-527.76,0.00024654,2]
[367479151,1750812643500,-331.57,0.00024654,2]
[367479152,1750812643510,-490.0,0.00024654,2]
[367479153,1750812643519,-490.0,0.00024654,2]
[367479154,1750812643529,-490.0,0.00024654,2]
[367479155,1750812643539,-490.0,0.00024655,2]
[367479156,1750812643549,-5800.0,0.00024657,2]
[367479157,1750812643559,-380.08943132,0.00024657,2]
[367479158,1750812643568,-1000.0,0.00024658,2]
[367479159,1750812643578,-172.89603072,0.00024753,2]
[367479160,1750812643588,-204.0,0.00024756,6]
[367479161,1750812643597,-838.5361619,0.00024769,2]
[367479162,1750812643607,-8041.59742922,0.0002478,2]
[367479163,1750812643617,-243.06,0.00024799,2]
[367479164,1750812643627,-433.52939927,0.00024799,2]
[367479165,1750812643636,-2439.47,0.000248,2]
[367479166,1750812643646,-172.35195666,0.000248,2]
[367479167,1750812643656,-66056.63836323,0.000248,2]
[367479168,1750812643665,-176.45990299,0.000248,2]
[367479169,1750812643675,-345807.242479,0.000248,3]
[367479170,1750812643685,-550.30711231,0.00024873,2]
[367479171,1750812643695,-2025.66531251,0.000249,3]
[367479172,1750812643713,-1419.39615247,0.000249,3]
[367479173,1750812643725,-434.15677188,0.000249,3]
[367479174,1750812643737,-994.6765999,0.000249,3]
[367479175,1750812643749,-42580.67114969,0.000249,3]
[367479176,1750812643760,-6217.34147064,0.000249,3]
[367479177,1750812643772,-840.8243908,0.000249,3]
[367479178,1750812643784,-2100.05512954,0.000249,3]
[367479179,1750812643795,-4316.23010528,0.000249,3]
[367479180,1750812643811,-213.4485423,0.00024006,2]
[367479181,1750812643820,-374.10410906,0.000249,3]
[367479182,1750812643831,-497.12974831,0.000249,3]
[367479183,1750812643870,-1720.20088146,0.00023298,2]
[367479184,1750812643882,-2377.79911854,0.00023298,2]
[367479185,1750812643893,-151.0,0.0002438,2]
[367479186,1750812643902,-9998.42624866,0.000249,3]
[367479187,1750812643914,-393.8979766,0.000249,3]
[367479188,1750812643934,-420.0,0.000249,3]
[367479189,1750812643945,-3364.67212073,0.000249,3]
[367479190,1750812645504,-151.0,0.00024873,2]
[367479191,1750812645514,-15160.72437817,0.000249,3]
[367479192,1750812645662,-60558.31009497,0.000249,3]
[367479193,1750812645717,-406.15,0.000249,3]
[367479208,1750812829487,157.54,0.00013699,2]
[367479215,1750813571890,204.0,0.00018552,2]
[367479217,1750813757307,4000.0,0.00019,2]
[367479224,1750813814943,157.54,0.00013699,2]
[367479227,1750813831669,-172.86246256,0.00019552,2]
[367479228,1750813831679,-450.64909148,0.000199,2]
[367479229,1750813831692,-34.38090852,0.000199,2]
[367479230,1750813831701,-500.0,0.000199,2]
[367479231,1750813831710,-445.95312218,0.000199,2]
[367479232,1750813831720,-256.50519976,0.00021618,2]
[367479233,1750813831730,-172.86246256,0.00021718,2]
[367479234,1750813831739,-250.0,0.0002189,2]
[367479235,1750813831749,-2000.0,0.0002189,5]
[367479236,1750813831759,-204.0,0.0002232,7]
[367479237,1750813831768,-157.54,0.00022505,2]
[367479238,1750813831777,-256.50519975,0.00022812,2]
[367479239,1750813831786,-156.0,0.00023228,2]
[367479240,1750813831796,-3027.66610678,0.00023228,2]
[367479241,1750813831808,-1070.33389322,0.00023228,2]
[367479242,1750813831817,-778.60731824,0.00023297,2]
[367479243,1750813831826,-207.4,0.0002336,2]
[367479244,1750813831836,-200.0,0.00023373,2]
[367479245,1750813831847,-300.0,0.00023373,2]
[367479246,1750813831857,-7408.5,0.00023393,2]
[367479247,1750813831866,-155.8,0.00023572,2]
[367479248,1750813831875,-627.564,0.00023751,4]
[367479249,1750813831884,-778.60731824,0.00023783,2]
[367479250,1750813831894,-1500.0,0.000238,2]
[367479251,1750813831903,-1307.0249,0.00023907,2]
[367479252,1750813831912,-1000.0,0.00023907,2]
[367479253,1750813831922,-151.0,0.00023991,2]
[367479254,1750813831931,-151.0,0.00023991,2]
[367479255,1750813831941,-151.0,0.00023991,2]
[367479256,1750813831950,-151.0,0.00023991,2]
[367479258,1750813831959,-151.0,0.00023991,2]
[367479260,1750813831968,-225.0,0.00023991,2]
[367479262,1750813831978,-635.17190065,0.00023995,2]
[367479263,1750813831987,-152.08,0.00024,2]
[367479264,1750813831995,-3000.000001,0.00024,2]
[367479265,1750813832005,-867.7282,0.00024,2]
[367479267,1750813832014,-500.0,0.00024,2]
[367479269,1750813832023,-256.50519975,0.00024005,2]
[367479271,1750813832032,-23592.3787,0.00024005,2]
[367479273,1750813832041,-778.60731824,0.00024025,2]
[367479275,1750813832050,-417.25164722,0.0002403,2]
[367479277,1750813832059,-200.0,0.00024044,7]
[367479279,1750813832068,-1000.0,0.00024066,2]
[367479281,1750813832077,-8590.70013769,0.00024091,3]
[367479283,1750813832086,-490.0,0.00024105,2]
[367479285,1750813832095,-638.18,0.00024105,2]
[367479287,1750813832104,-490.0,0.00024105,2]
[367479289,1750813832113,-518.34,0.00024105,2]
[367479291,1750813832122,-490.0,0.00024105,2]
[367479294,1750813832131,-490.0,0.00024105,2]
[367479296,1750813832140,-216.21617437,0.00024106,2]
[367479299,1750813832149,-490.0,0.00024106,2]
[367479302,1750813832158,-490.0,0.00024106,2]
[367479305,1750813832167,-535.29283371,0.00024106,2]
[367479308,1750813832176,-490.0,0.00024106,2]
[367479311,1750813832185,-490.0,0.00024106,2]
[367479314,1750813832194,-490.0,0.00024106,2]
[367479317,1750813832204,-500.0,0.00024106,2]
[367479320,1750813832213,-150.0,0.00024106,2]
[367479323,1750813832222,-150.0,0.00024106,2]
[367479326,1750813832231,-500.0,0.00024106,2]
[367479329,1750813832240,-500.0,0.00024106,2]
[367479332,1750813832250,-205.83489303,0.00024106,2]
[367479335,1750813832258,-500.0,0.00024106,2]
[367479338,1750813832267,-500.0,0.00024106,2]
[367479341,1750813832276,-500.0,0.00024106,2]
[367479344,1750813832285,-150.0,0.00024106,2]
[367479346,1750813832293,-500.0,0.00024106,2]
[367479348,1750813832302,-500.0,0.00024133,2]
[367479350,1750813832311,-150.0,0.00024133,2]
[367479353,1750813832320,-150.0,0.00024133,2]
[367479356,1750813832329,-500.0,0.00024133,2]
[367479359,1750813832338,-500.0,0.00024133,2]
[367479362,1750813832347,-600.0,0.00024133,2]
[367479365,1750813832357,-500.0,0.00024133,2]
[367479368,1750813832366,-521.14021212,0.00024133,2]
[367479370,1750813832375,-500.0,0.00024133,2]
[367479372,1750813832384,-500.0,0.00024161,2]
[367479374,1750813832394,-254.24211024,0.00024161,2]
[367479376,1750813832403,-150.0,0.00024161,2]
[367479378,1750813832412,-500.0,0.00024161,2]
[367479380,1750813832421,-500.0,0.00024161,2]
[367479382,1750813832430,-500.0,0.00024161,2]
[367479384,1750813832440,-500.0,0.00024161,2]
[367479386,1750813832449,-500.0,0.00024188,2]
[367479388,1750813832462,-500.0,0.00024188,2]
[367479390,1750813832471,-778.60731824,0.00024189,2]
[367479392,1750813832480,-500.0,0.00024216,2]
[367479394,1750813832489,-500.0,0.00024216,2]
[367479396,1750813832500,-250.0,0.0002422,2]
[367479398,1750813832509,-666.0,0.0002422,2]
[367479400,1750813832518,-500.0,0.00024243,2]